Cogmind - Beta 15 @@@ ROGUE MODE // 2025.09.02 @ 18:17:06 Player: Gumbus Result: Destroyed by G-47 Trooper with Particle Gun Performance ------------- Evolutions (1) 500 Regions Visited (2) 400 Robots Destroyed (25) 125 Value Destroyed (833) 833 Prototype IDs (0) 0 Alien Tech Used (0) 0 Bonus (0) 0 TOTAL SCORE: 1858 Bonus ------- None Cogmind --------- Core Integrity 0/400 Matter 300/300 Energy 100/100 System Corruption 0% Temperature Cool (9) Movement Core (200) Ox3 Location -9/Materials Parts ------- > --- POWER (1) -------- (None) > --- PROPULSION (2) --- (None) > --- UTILITY (3) ------ Medium Storage Unit > --- WEAPON (3) ------- (None) > --- INVENTORY (10) --- Wheel Wheel Peak State ------------ > --- POWER ------------ Ion Engine > --- PROPULSION ------- Wheel Wheel > --- UTILITY ---------- Particle Charger Particle Charger Power Shielding > --- WEAPON ----------- Medium Laser Medium Laser Mini Grenade Launcher > --- INVENTORY -------- Wheel Wheel Medium Storage Unit [Rating: 14] Favorites ----------- Power Ion Engine Engine Ion Engine Propulsion Wheel Treads Light Treads Wheel Wheel Hover Unit Hover Unit Utility Particle Charger Device Particle Charger Storage Medium Storage Unit Hackware Hacking Suite Protection Power Shielding Weapon Medium Laser Energy Gun Medium Laser Energy Cannon Beam Cannon Ballistic Gun Assault Rifle Ballistic Cannon Improved Light Cannon Launcher Mini Grenade Launcher Build | -11 -10 -9 ------- Run | Yrd Mat Mat Slots Evolved 2 | . . 2 Power . | . . . Propulsion . | . . . Utility 1 | . . 1 Weapon 1 | . . 1 Parts Attached 29 | 5 11 13 Power 3 | 1 . 2 Engine 3 | 1 . 2 Core . | . . . Reactor . | . . . Propulsion 7 | 1 4 2 Treads 1 | 1 . . Leg . | . . . Wheel 4 | . 2 2 Hover 2 | . 2 . Flight . | . . . Utility 12 | 1 5 6 Device 5 | . 2 3 Storage 2 | 1 1 . Processor . | . . . Hackware 1 | . 1 . Protection 4 | . 1 3 Artifact . | . . . Weapon 7 | 2 2 3 Energy Gun 2 | 2 . . Energy Cannon 1 | . . 1 Ballistic Gun 2 | . 2 . Ballistic Cannon 1 | . . 1 Launcher 1 | . . 1 Special Weapon . | . . . Impact Weapon . | . . . Slashing Weapon . | . . . Piercing Weapon . | . . . Special Melee Weapon . | . . . Unidentified Prototypes . | . . . Parts Lost 12 | . . 12 Power 2 | . . 2 Propulsion 3 | . . 3 Utility 4 | . . 4 Weapon 3 | . . 3 Highest Loss Streak 5 | . . 5 To Critical Strikes . | . . . Average Backups 3 | 1 4 3 Power . | . . . Propulsion 1 | 1 1 1 Utility 1 | . 1 1 Weapon . | . . . Tool/Special . | . . . Unused Backups 5 | . 3 2 Power . | . . . Propulsion 3 | . 1 2 Utility 2 | . 2 . Weapon . | . . . Tool/Special . | . . . Average Slot Usage (%) 81 | . 88 77 Engine 8 | . 14 6 Treads 2 | . 6 . Wheel 14 | . 11 16 Hover 3 | . 3 3 Device 12 | . 10 13 Storage 5 | . 7 5 Protection 6 | . 5 7 Energy Gun 15 | . 25 10 Energy Cannon 1 | . . 1 Ballistic Cannon 3 | . . 4 Launcher 6 | . . 9 Peak Build Rating 14 | 5 9 14 Average Rating 8 | 4 6 10 On Entrance 4 | . 5 9 Naked Turns . | . . . Heaviest Build 28 | 14 21 28 Greatest Support 32 | 20 32 20 Greatest Overweight (x) 4 | 4 2 2 Average Overweight (x) . | . . . Largest Inventory Capacity 10 | 8 10 10 Average Capacity 7 | 7 7 7 Most Carried 6 | 3 6 5 Average Carried 3 | 1 4 3 Final Capacity 10 | 8 5 10 Final Carried 5 | 3 5 2 Class Distribution -------------------- 67% | Mutant 17% | Gunner 8% | Tank 6% | Scavenger-Mutant Dominant Class ---------------- Mutant | -10/Materials Mutant | -9/Materials Resources | -11 -10 -9 ----------- Run | Yrd Mat Mat Matter Collected 737 | 228 178 331 Remotely . | . . . Salvage Created 757 | . 242 515 Parts 41 | . 15 26 Haulers Intercepted . | . . . Recyclers Shooed 1 | . . 1 Parts Field Recycled . | . . . Retrieved Matter . | . . . Parts Self-Destructed . | . . . Prevented . | . . . Kills | -11 -10 -9 ------- Run | Yrd Mat Mat Combat Hostiles Destroyed 18 | . 4 14 Guns 5 | . 4 1 Cannons 2 | . . 2 AOE 9 | . . 9 Classes Destroyed 6 | . 3 3 Builder 1 | . . 1 Recycler 1 | . . 1 Operator 2 | . 1 1 Watcher 3 | . 2 1 Grunt 14 | . 4 10 Sentry 4 | . . 4 Best Kill Streak 4 | . 4 4 Combat Bots Only 4 | . 4 3 Max Kills in Single Turn 2 | . 1 2 Gunslinging . | . . . Exploded 2 | . . 2 Melee . | . . . Uniques/NPCs Destroyed . | . . . Combat | -11 -10 -9 -------- Run | Yrd Mat Mat Hostile Shots Fired 132 | . 9 123 Missed 33 | . 3 30 Hits 99 | . 6 93 Projectile 99 | . 6 93 Critical Strikes 3 | . . 3 Damage Taken 1530 | . 70 1460 Core 417 | . 11 406 Absorbed by Shields . | . . . Redirected to Shielding 22 | . . 22 Core Remaining (%) 97 | 100 95 . Volleys Fired 65 | . 21 44 Largest 3 | . 2 3 Hottest 140 | . 100 140 Shots Fired 127 | . 41 86 Gun 89 | . 41 48 Cannon 19 | . . 19 Launcher 19 | . . 19 Special . | . . . Kinetic 17 | . 16 1 Thermal 91 | . 25 66 Explosive 19 | . . 19 Electromagnetic . | . . . Robot Hit Streak 17 | . 4 17 Robot Miss Streak 5 | . 5 3 Penetration Max . | . . . Secondary Targets . | . . . Shots Hit Robots 75 | . 21 54 Core Hits 41 | . 13 28 Critical Kills 1 | . . 1 Critical Parts Destroyed . | . . . Critical Strikes 3 | . . 3 Burn 2 | . . 2 Meltdown 1 | . . 1 Melee Attacks . | . . . Impact . | . . . Slashing . | . . . Piercing . | . . . Sneak Attacks . | . . . Combat Hostiles . | . . . Follow-up Attacks . | . . . Damage Inflicted 1710 | . 287 1423 Guns 676 | . 287 389 Cannons 274 | . . 274 Explosions 758 | . . 758 Melee . | . . . Ramming 2 | . . 2 Kinetic 119 | . 98 21 Thermal 831 | . 189 642 Explosive 758 | . . 758 Electromagnetic . | . . . Impact . | . . . Slashing . | . . . Piercing . | . . . Highest Corruption . | . . . Average Corruption . | . . . Corruption Purged . | . . . Corruption Blocked . | . . . Overload Shots . | . . . Overflow Damage 64 | . . 64 Projectiles . | . . . Explosions 64 | . . 64 Melee . | . . . Knockbacks . | . . . Impact . | . . . Kinetic . | . . . Secondary . | . . . Self-Inflicted Damage 228 | . . 228 Shots 9 | . . 9 Rammed 1 | . . 1 Targets Rammed 1 | . . 1 Kicked . | . . . Crushed . | . . . Highest Temperature 456 | . 305 456 Average Temperature 124 | . 112 129 Received Heat Transfer 729 | . 39 690 Effects 7 | . 2 5 Shutdowns 2 | . . 2 Energy Bleed 2 | . . 2 Interference 2 | . 2 . Damage (minor) 1 | . . 1 Siege Activations . | . . . Martial Activations . | . . . Shielding Activations . | . . . Robots Disrupted . | . . . Combat Hostiles . | . . . Robots Corrupted . | . . . Combat Hostiles . | . . . Parts Fried . | . . . Impact Corruptions . | . . . Robots Melted 2 | . . 2 Combat Hostiles 2 | . . 2 Parts Melted 4 | . . 4 Heat Transferred 2257 | . 555 1702 Parts Sabotaged . | . . . Parts Stolen . | . . . Parts Stripped . | . . . Power Chain Reactions . | . . . Alert | -11 -10 -9 ------- Run | Yrd Mat Mat Maximum Alert Level 1 | . . 1 Low Security (%) 70 | 100 100 52 Level 1 29 | . . 47 Level 2 . | . . . Level 3 . | . . . Level 4 . | . . . Level 5 . | . . . High Security . | . . . Max Security . | . . . Peak Influence 358 | . 80 358 Initial 15 | . . 15 Average 117 | . 18 180 Influence Increases 737 | . 119 618 Destroy 0b10 Robot/C 360 | . 80 280 Destroy 0b10 Robot/NC 35 | . 15 20 Destroy Leader 96 | . 24 72 Disable Machine 90 | . . 90 Destroy Structure 141 | . . 141 Lose Combat Pursuer 15 | . . 15 Influence Decreases 573 | . 81 492 Entered New Map 23 | . . 23 Time Decay 440 | . 81 359 Lost Part 110 | . . 110 Squads Dispatched 3 | . 1 2 Investigation 1 | . . 1 Extermination . | . . . Reinforcement 2 | . 1 1 Assault . | . . . Garrison . | . . . Intercept . | . . . Searches Triggered . | . . . Construction Impeded . | . . . Haulers Reinforced . | . . . Active Scanning Responses . | . . . Cargo Convoy Interrupts . | . . . Stealth | -11 -10 -9 --------- Run | Yrd Mat Mat Distress Signals 7 | . 3 4 Communications Jammed . | . . . Distress Signals . | . . . Times Spotted 36 | . 9 27 Peak Tracking Total 5 | . 3 5 Tactical Retreats 2 | . 1 1 Traps | -11 -10 -9 ------- Run | Yrd Mat Mat Traps Triggered 1 | . . 1 Indirectly . | . . . Trap Hack Attempts . | . . . Triggered . | . . . Disarmed . | . . . Reprogrammed . | . . . Reused . | . . . Traps Extracted . | . . . Installed . | . . . Triggered . | . . . Machines | -11 -10 -9 ---------- Run | Yrd Mat Mat Machines Disabled 6 | . . 6 Max in Single Turn 2 | . . 2 Machines Repaired . | . . . Machines Dismantled . | . . . Machines Sabotaged . | . . . Overloaded Fab Kills . | . . . Hacking | -11 -10 -9 --------- Run | Yrd Mat Mat Machines Accessed 1 | . 1 . Terminals . | . . . Fabricators . | . . . Repair Stations . | . . . Recycling Units 1 | . 1 . Scanalyzers . | . . . Garrison Access . | . . . Total Hacks 3 | . 3 . Successful 2 | . 2 . Failed 1 | . 1 . Catastrophic . | . . . Database Lockouts . | . . . Manual . | . . . Terminals . | . . . Fabricators . | . . . Repair Stations . | . . . Recycling Units 3 | . 3 . Scanalyzers . | . . . Garrison Access . | . . . Terminal Hacks . | . . . Fabricator Hacks . | . . . Repair Station Hacks . | . . . Recycling Unit Hacks 2 | . 2 . Recycle Component 1 | . 1 . Process 1 | . 1 . Scanalyzer . | . . . Garrison Access Hacks . | . . . Unauthorized Hacks . | . . . Terminals . | . . . Fabricators . | . . . Repair Stations . | . . . Recycling Units . | . . . Scanalyzers . | . . . Garrison Access . | . . . Data Cores Recovered . | . . . Used . | . . . Hacking Detections . | . . . Full Trace Events . | . . . Feedback Events . | . . . Feedback Blocked . | . . . Robot Schematics Acquired . | . . . Robots Built . | . . . Authchips . | . . . Time . | . . . Total Robot Build Rating . | . . . Part Schematics Acquired . | . . . Parts Built . | . . . Authchips . | . . . Time . | . . . Total Part Build Rating . | . . . Parts Repaired . | . . . Time . | . . . Parts Recycled 1 | . 1 . Recycled Matter 50 | . 50 . Retrieved Matter . | . . . Retrieved Components . | . . . Parts Scanalyzed . | . . . Part Schematics Acquired . | . . . Parts Damaged . | . . . Bothacking | -11 -10 -9 ------------ Run | Yrd Mat Mat Used RIF Installer . | . . . Robots Hacked . | . . . Non-combat . | . . . Combat . | . . . Robot Hacks Applied . | . . . Relay Couplers Released . | . . . Fabnet Peak Effective % . | . . . Robots Rewired . | . . . Allies Hacked . | . . . Hacks Repelled . | . . . Allies | -11 -10 -9 -------- Run | Yrd Mat Mat Total Allies . | . . . Largest Group . | . . . Highest-Rated Group . | . . . Highest-Rated Ally . | . . . Total Orders . | . . . Ally Attacks . | . . . Total Damage . | . . . Kills . | . . . Allies Corrupted . | . . . Allies Melted . | . . . Intel | -11 -10 -9 ------- Run | Yrd Mat Mat Active Infowar (turns) 241 | . 241 . ECM 241 | . 241 . Robot Analysis Total . | . . . Derelict Logs Recovered . | . . . Drone Launches . | . . . Drone Recoveries . | . . . Exploration | -11 -10 -9 ------------- Run | Yrd Mat Mat Turns Passed 1417 | 90 449 878 Spaces Moved 688 | 56 277 355 Core 19 | 19 . . Treads 138 | 37 101 . Legs . | . . . Wheels 364 | . 101 263 Hover 167 | . 75 92 Flight . | . . . Fastest Speed 50 | 50 56 56 Average Speed 114 | 138 124 103 Slowest Speed 250 | 250 240 180 Overloaded Moves . | . . . Propulsion Burnouts . | . . . Robots Hopped . | . . . Potential Cave-ins . | . . . Cave-ins Triggered . | . . . Exploration Rate (%) 24 | 4 43 26 Regions Visited 2 Branch Regions . Pre-discovered Areas . | . . . Known Exits Taken . | . . . Unknown Exits Taken 2 | 1 1 . Scrap Searched . | . . . Spaces Dug . | . . . Terrain Destroyed 161 | . . 161 Melee . | . . . Projectile . | . . . AOE 161 | . . 161 Terrain Rammed . | . . . Walls Destroyed . | . . . Machines Disabled . | . . . Actions | -11 -10 -9 --------- Run | Yrd Mat Mat Total 1205 | 68 345 792 Wait 359 | . . 359 Move 686 | 55 276 355 Hop . | . . . Pick Up 34 | 8 18 8 Fast Attach 5 | . 1 4 Attach 27 | 5 11 11 Detach 3 | . 2 1 Swap 2 | . 2 . Drop 23 | . 14 9 Fire 65 | . 21 44 Melee . | . . . Ram 1 | . . 1 Kick . | . . . Crush . | . . . Escape Stasis . | . . . Rewire . | . . . Trap . | . . . Miscellaneous . | . . . Route ------- -11/Scrapyard -10/Materials (discovered 2 exits: *Mat / [*Min]) -9/Materials History --------- Turn | Location | Event 39 | -11/Scrapyard | Discovered new exit (range 15) 91 | -11/Scrapyard | Entered Materials 91 | -10/Materials | Discovered new exit (range 7) 317 | -10/Materials | Build established: Mutant 522 | -10/Materials | Discovered new exit (range 16) 540 | -10/Materials | Entered another Materials area 540 | -9/Materials | Evolved 2 slots: Utility x1, Weapon x1 1052 | -9/Materials | Lost 5 parts (1p3u1w) 1374 | -9/Materials | Core integrity fell below 50% 1411 | -9/Materials | Core integrity fell below 20% 1418 | -9/Materials | Destroyed by G-47 Trooper with Particle Gun Last Messages --------------- U-05 Engineer builds a Wall. U-05 Engineer lays Concrete. U-05 Engineer builds a Wall. U-05 Engineer lays Concrete. U-05 Engineer builds a Wall. U-05 Engineer lays Concrete. K-01 Serf collects debris. U-05 Engineer lays Concrete. U-05 Engineer builds a Wall. U-05 Engineer lays Concrete. U-05 Engineer builds a Wall. U-05 Engineer lays Concrete. W-16 Scout sends out distress signal. Particle Charger destroyed. Mni. Grenade Launcher destroyed. Critical hit (Burn: +37). Wheel destroyed. Critical hit (Burn: +37). Imp. Light Cannon destroyed. Wheel destroyed. Map ----- +----------------------------------------------------+ | | | | | | | | | | | | | | | | | ?????????????????????????????????????????????????? | | ????????????????##???????????????????????????????? | | ????????????????# ######?????????????????????????? | | ????????????????# #?????????????????????????? | | ????????????????# """ #?????????????????????????? | | ????????????????# " " #?????????????????????????? | | ???????????????## " #?????????????????????????? | | ???????????????# #?????????????????????????? | | ????????????#### " #?????????????????????????? | | ???????????## # " #?????????????????????????? | | ??????###+## # #?????????????????????????? | | ??????# # #?????????????????????????? | | ??????# # #?????????????????????????? | | ????##### # %# ][ #?????????????????????????? | | ????# / ## ][ #?????????????????????????? | | ????# # ## [ #######???????????????????? | | ????#= """ # ##+####### #???????????????????? | | ????# # g @ #???????????????????? | | ????+ " ## g #???????????????????? | | ????# ## ###+###### #???????????????????? | | ????###+ ## # ### ##???????????????????? | | ?????? ##?## # #?? #??????????????????#?? | | ????? ?????# # #?? #????????????????? #?? | | ?????##+###?# + #?? #???????????????? ???? | | ?????# # # #?? #???????##+##### ????? | | ?????# # # """ #?? ???????# ?????? | | ?????# + # """"" +??? ???????# ??????? | | ?????# "Y" # # """"" #???T ???????# ???????? | | ?????# """ # + """" #??? #??????# #????????? | | ?????# # # """ ############## #?????##? | | ?????###### # ## == # #???## # | | ?????###### # $ ####### T = + #### # # | | ??+ + # | | ??# # ####### """ """ # | | ??# #####+ # ##?????# """ """ # | | ??????? # #??????# """ """ ####### | | ??????# # ###??????# #??# ## | | ??????# """ + #????????#############??# """ #? | | ??????# """ # #???????????????????????# ![ """ #? | | ??????# """ # #???????????????????????#!![ """ #? | | ??????# """ # #???????????????????????#![ [ #? | | ?????????"" # #???????????????????????# #? | +----------------------------------------------------+ Best States ------------- Heat Dissipation 38 Energy Generation 10 Energy Capacity 250 Matter Stores 300 Matter Capacity 300 Sight Range 16 Terrain Scan Density 10 ECM Strength 1 Armor Coverage 450 Power Shielding 33 Evasion (%) 53 Recoil Reduction 1 Particle Charging 15 Offensive Hacking 10 Item Schematics ----------------- None Robot Schematics ------------------ None Fabricated ------------ Nothing Repaired ---------- Nothing Alien Tech Used ----------------- None Achievements -------------- Crack Shot Challenges ------------ None Game ------ Seed RecyclingAntimatterHarness Manual? 0 Play Time 00:27:18 Cumulative 1.8 hours Start 2025.09.02 @ 17:35:37 End 2025.09.02 @ 18:17:06 Sessions 1 Manual Loads 0 Difficulty Rogue Special Mode None Game No. 5 Rogue 5 Adventurer 0 Explorer 0 Win Type - Total 0 Types 0/0/0/0/0/0/0/0/0/0 Lore% 0 Gallery% 4 Achievement% 5 Wizard Run 0 Options --------- Layout 1 ASCII 0 Keyboard 0 Movement Mouse Keybinds 0 Fullscreen 1 Font 32/SmallcapsGlow Map View 50x35 Zoom Use 0% Tactical HUD 0 Map Filters NONE Filters NONE Steam 1 RUN: c7dabe49-72e9-4711-9d19-ff663f94f12a